[Event "*** Titled Tuesday Blitz"]
[Site "Chess.com"]
[Date "2021.03.30"]
[Round "4"]
[White "AttilaTurzo"]
[Black "GelmanAlexander"]
[Result "1-0"]
[WhiteElo "2501"]
[BlackElo "2633"]
[TimeControl "180+1"]
[EndTime "10:40:06 PDT"]
[Termination "AttilaTurzo won by resignation"]

1. d4 {[%clk 0:03:00.9]} 1... Nf6 {[%clk 0:02:59.3]} 2. Nf3 {[%clk 0:03:00.6]}
2... c5 {[%clk 0:02:59.5]} 3. c3 {[%clk 0:02:56.1]} 3... b6 {[%clk 0:02:59.1]}
4. Bf4 {[%clk 0:02:52.6]} 4... Bb7 {[%clk 0:02:59.1]} 5. e3 {[%clk 0:02:52.5]}
5... d6 {[%clk 0:02:59.2]} 6. h3 {[%clk 0:02:50.2]} 6... Nbd7 {[%clk 0:02:59.1]}
7. Nbd2 {[%clk 0:02:50.2]} 7... h6 {[%clk 0:02:59.1]} 8. Bc4 {[%clk 0:02:46.6]}
8... a6 {[%clk 0:02:57.1]} 9. a4 {[%clk 0:02:46.1]} 9... g5 {[%clk 0:02:53.8]}
10. Bh2 {[%clk 0:02:44.4]} 10... Rg8 {[%clk 0:02:50.4]} 11. Qb3 {[%clk
0:02:39.2]} 11... e6 {[%clk 0:02:49.8]} 12. Bd3 {[%clk 0:02:15.1]} 12... h5
{[%clk 0:02:43.6]} 13. e4 {[%clk 0:02:05]} 13... g4 {[%clk 0:02:24.9]} 14. Ng1
{[%clk 0:01:58.2]} 14... gxh3 {[%clk 0:02:13.5]} 15. gxh3 {[%clk 0:01:54.6]}
15... cxd4 {[%clk 0:02:04.3]} 16. cxd4 {[%clk 0:01:54.2]} 16... Rc8 {[%clk
0:01:57.5]} 17. Ne2 {[%clk 0:01:53.8]} 17... d5 {[%clk 0:01:51.5]} 18. f3 {[%clk
0:01:44.5]} 18... dxe4 {[%clk 0:01:42.3]} 19. fxe4 {[%clk 0:01:44.3]} 19... Bh6
{[%clk 0:01:03.4]} 20. Nc3 {[%clk 0:01:22.8]} 20... Nc5 {[%clk 0:00:49]} 21. Qc2
{[%clk 0:01:14.9]} 21... Qxd4 {[%clk 0:00:37.3]} 22. Be2 {[%clk 0:01:07.8]}
22... Bxd2+ {[%clk 0:00:32.4]} 23. Qxd2 {[%clk 0:01:08.7]} 23... Qxd2+ {[%clk
0:00:32.8]} 24. Kxd2 {[%clk 0:01:09]} 24... Nb3+ {[%clk 0:00:33.4]} 25. Ke3
{[%clk 0:01:09.7]} 25... Nxa1 {[%clk 0:00:34.1]} 26. Rxa1 {[%clk 0:01:10.3]}
26... Rg2 {[%clk 0:00:24.7]} 27. Bd6 {[%clk 0:00:59.5]} 27... Nxe4 {[%clk
0:00:18.1]} 28. Nxe4 {[%clk 0:00:53.8]} 28... Bxe4 {[%clk 0:00:18.2]} 29. Bxa6
{[%clk 0:00:53.8]} 29... Bc6 {[%clk 0:00:16.8]} 30. Bxc8 {[%clk 0:00:51.6]}
30... Rxb2 {[%clk 0:00:15.4]} 31. h4 {[%clk 0:00:43.8]} 31... f5 {[%clk
0:00:15.3]} 32. Bxe6 {[%clk 0:00:40.2]} 32... f4+ {[%clk 0:00:11.9]} 33. Kxf4
{[%clk 0:00:36.9]} 33... Re2 {[%clk 0:00:11.2]} 34. Bf5 {[%clk 0:00:31.5]} 34...
Kf7 {[%clk 0:00:11.6]} 35. Rg1 {[%clk 0:00:28.5]} 35... Rf2+ {[%clk 0:00:11.7]}
36. Kg5 {[%clk 0:00:26.9]} 36... Ra2 {[%clk 0:00:10]} 37. Bg6+ {[%clk 0:00:21]}
37... Ke6 {[%clk 0:00:09.5]} 38. Bf8 {[%clk 0:00:20]} 38... Rxa4 {[%clk
0:00:10.1]} 39. Bxh5 {[%clk 0:00:19]} 39... Ra5+ {[%clk 0:00:09.7]} 40. Kh6
{[%clk 0:00:19.3]} 40... Be4 {[%clk 0:00:08.7]} 41. Rg5 {[%clk 0:00:18]} 41...
Ra8 {[%clk 0:00:08]} 42. Bg4+ {[%clk 0:00:17.7]} 42... Kf6 {[%clk 0:00:07.9]}
43. Bg7+ {[%clk 0:00:17.6]} 43... Kf7 {[%clk 0:00:08.5]} 44. Bh5+ {[%clk
0:00:17.3]} 44... Ke6 {[%clk 0:00:08.3]} 45. Bg6 {[%clk 0:00:17.3]} 45... Bc6
{[%clk 0:00:06.5]} 46. h5 {[%clk 0:00:16.9]} 46... b5 {[%clk 0:00:06.9]} 47.
Bf5+ {[%clk 0:00:16.1]} 47... Kd6 {[%clk 0:00:06.8]} 48. Rg6+ {[%clk 0:00:16.2]}
48... Kc5 {[%clk 0:00:07]} 49. Rg5 {[%clk 0:00:15]} 49... Kb6 {[%clk 0:00:05.9]}
50. Be6 {[%clk 0:00:14.9]} 50... b4 {[%clk 0:00:06]} 51. Kg6 {[%clk 0:00:15.2]}
51... Be8+ {[%clk 0:00:05]} 52. Bf7 {[%clk 0:00:14.9]} 52... Bxf7+ {[%clk
0:00:05.2]} 53. Kxf7 {[%clk 0:00:15.8]} 53... Ra7+ {[%clk 0:00:05.9]} 54. Kg8
{[%clk 0:00:15.4]} 54... b3 {[%clk 0:00:06.2]} 55. h6 {[%clk 0:00:15.5]} 55...
Ra2 {[%clk 0:00:04.4]} 56. h7 {[%clk 0:00:14.6]} 56... Ra8+ {[%clk 0:00:04.6]}
57. Kf7 {[%clk 0:00:14.5]} 57... Ra7+ {[%clk 0:00:04.8]} 58. Kg6 {[%clk
0:00:14.6]} 58... Ra8 {[%clk 0:00:04.5]} 59. h8=Q {[%clk 0:00:14.2]} 1-0

[Event "*** Titled Tuesday Blitz"]
[Site "Chess.com"]
[Date "2021.03.30"]
[Round "4"]
[White "nikitakhoroshev"]
[Black "ural58"]
[Result "1-0"]
[WhiteElo "2685"]
[BlackElo "2490"]
[TimeControl "180+1"]
[EndTime "10:40:09 PDT"]
[Termination "nikitakhoroshev won by resignation"]

1. d4 {[%clk 0:03:00.9]} 1... d5 {[%clk 0:02:24.8]} 2. c4 {[%clk 0:03:00.2]}
2... e5 {[%clk 0:02:23.9]} 3. dxe5 {[%clk 0:02:59.1]} 3... d4 {[%clk 0:02:23.9]}
4. Nf3 {[%clk 0:02:59.2]} 4... Nc6 {[%clk 0:02:23.9]} 5. a3 {[%clk 0:02:59.6]}
5... g6 {[%clk 0:02:23.4]} 6. e3 {[%clk 0:02:58.3]} 6... Bg4 {[%clk 0:02:22.1]}
7. Be2 {[%clk 0:02:56.3]} 7... Bxf3 {[%clk 0:02:21.4]} 8. Bxf3 {[%clk
0:02:55.5]} 8... Nge7 {[%clk 0:02:21.6]} 9. O-O {[%clk 0:02:52.1]} 9... Bg7
{[%clk 0:02:21.2]} 10. exd4 {[%clk 0:02:51]} 10... Qxd4 {[%clk 0:02:21]} 11. Qa4
{[%clk 0:02:38.4]} 11... O-O {[%clk 0:02:14.3]} 12. Nc3 {[%clk 0:02:37.9]} 12...
Nxe5 {[%clk 0:02:00.2]} 13. Bxb7 {[%clk 0:02:30.9]} 13... Rab8 {[%clk
0:02:00.3]} 14. Be4 {[%clk 0:02:27.7]} 14... Nxc4 {[%clk 0:01:57.4]} 15. Rd1
{[%clk 0:02:25.7]} 15... Qc5 {[%clk 0:01:31.8]} 16. Ra2 {[%clk 0:02:03.5]} 16...
Rfd8 {[%clk 0:01:20.9]} 17. Rxd8+ {[%clk 0:01:46.8]} 17... Rxd8 {[%clk
0:01:21.8]} 18. Qc2 {[%clk 0:01:46.6]} 18... Bd4 {[%clk 0:01:10.6]} 19. b4
{[%clk 0:01:37.9]} 19... Qe5 {[%clk 0:01:06.8]} 20. Ne2 {[%clk 0:01:25.6]} 20...
Nd6 {[%clk 0:00:55.7]} 21. Bf3 {[%clk 0:01:21.2]} 21... Ndf5 {[%clk 0:00:47.5]}
22. Bf4 {[%clk 0:01:17.3]} 22... Qe6 {[%clk 0:00:42.2]} 23. g3 {[%clk
0:01:03.4]} 23... Bb6 {[%clk 0:00:40.3]} 24. Kg2 {[%clk 0:01:00.4]} 24... h5
{[%clk 0:00:37.3]} 25. h4 {[%clk 0:00:59.3]} 25... Nd5 {[%clk 0:00:35.2]} 26.
Bg5 {[%clk 0:00:56.2]} 26... Rd7 {[%clk 0:00:31.1]} 27. Ra1 {[%clk 0:00:47.7]}
27... f6 {[%clk 0:00:31]} 28. Bd2 {[%clk 0:00:45.8]} 28... Qd6 {[%clk
0:00:18.6]} 29. Qb3 {[%clk 0:00:32.1]} 29... Kg7 {[%clk 0:00:18.1]} 30. Qxd5
{[%clk 0:00:30.7]} 30... Qxd5 {[%clk 0:00:18]} 31. Bxd5 {[%clk 0:00:31.6]} 31...
Rxd5 {[%clk 0:00:18.9]} 32. Bf4 {[%clk 0:00:32]} 32... c5 {[%clk 0:00:15.5]} 33.
bxc5 {[%clk 0:00:28.2]} 33... Rxc5 {[%clk 0:00:16.3]} 34. Ra2 {[%clk 0:00:27.1]}
34... Ra5 {[%clk 0:00:15.5]} 35. a4 {[%clk 0:00:27.2]} 35... Kf7 {[%clk
0:00:15.5]} 36. Bd2 {[%clk 0:00:26.3]} 36... Re5 {[%clk 0:00:14.9]} 37. Bc3
{[%clk 0:00:25.6]} 37... Re4 {[%clk 0:00:14.3]} 38. a5 {[%clk 0:00:24.3]} 38...
Bc5 {[%clk 0:00:13.8]} 39. Rb2 {[%clk 0:00:22.9]} 39... Ke6 {[%clk 0:00:13.3]}
40. Nf4+ {[%clk 0:00:21.9]} 40... Kd6 {[%clk 0:00:10.4]} 41. Bxf6 {[%clk
0:00:20.1]} 41... Kc6 {[%clk 0:00:10.6]} 42. Rc2 {[%clk 0:00:19.6]} 42... Kb5
{[%clk 0:00:10.3]} 43. Nd3 {[%clk 0:00:18.7]} 43... Bd4 {[%clk 0:00:09.1]} 44.
Bd8 {[%clk 0:00:18.7]} 44... Ka6 {[%clk 0:00:08.3]} 45. Rc6+ {[%clk 0:00:18.1]}
45... Kb5 {[%clk 0:00:08.5]} 46. Rxg6 {[%clk 0:00:18.9]} 46... Re2 {[%clk
0:00:07.7]} 47. Rg5 {[%clk 0:00:19.2]} 47... Kc4 {[%clk 0:00:07.4]} 48. Rxf5
{[%clk 0:00:18.7]} 48... Kxd3 {[%clk 0:00:07.8]} 49. g4 {[%clk 0:00:19]} 49...
hxg4 {[%clk 0:00:07.7]} 50. Kg3 {[%clk 0:00:19.6]} 50... Re8 {[%clk 0:00:08.6]}
51. Bg5 {[%clk 0:00:19]} 51... Rc8 {[%clk 0:00:07.4]} 52. Kxg4 {[%clk 0:00:19]}
52... Rc4 {[%clk 0:00:08.2]} 53. f4 {[%clk 0:00:19.3]} 53... Bc3 {[%clk
0:00:08.3]} 54. h5 {[%clk 0:00:19.7]} 54... Rc6 {[%clk 0:00:08.7]} 55. h6 {[%clk
0:00:19.9]} 55... Ra6 {[%clk 0:00:09.6]} 56. h7 {[%clk 0:00:19.7]} 56... Kc4
{[%clk 0:00:09.7]} 57. Rf7 {[%clk 0:00:18.7]} 57... Rxa5 {[%clk 0:00:08.7]} 58.
Bf6 {[%clk 0:00:19]} 58... Bxf6 {[%clk 0:00:08.5]} 59. Rxf6 {[%clk 0:00:19.9]}
59... Ra1 {[%clk 0:00:07.9]} 60. h8=Q {[%clk 0:00:20.2]} 60... Rg1+ {[%clk
0:00:08.8]} 61. Kf5 {[%clk 0:00:20.4]} 1-0

[Event "*** Titled Tuesday Blitz"]
[Site "Chess.com"]
[Date "2021.03.30"]
[Round "4"]
[White "Rozum_Ivan"]
[Black "BendyBear"]
[Result "1-0"]
[WhiteElo "2732"]
[BlackElo "2436"]
[TimeControl "180+1"]
[EndTime "10:40:10 PDT"]
[Termination "Rozum_Ivan won by resignation"]

1. e4 {[%clk 0:03:00.9]} 1... c5 {[%clk 0:02:58.4]} 2. Nf3 {[%clk 0:03:01.2]}
2... d6 {[%clk 0:02:58.7]} 3. Nc3 {[%clk 0:03:01.6]} 3... Nf6 {[%clk 0:02:59.1]}
4. g3 {[%clk 0:03:01.6]} 4... g6 {[%clk 0:02:59.6]} 5. Bg2 {[%clk 0:03:02.1]}
5... Bg7 {[%clk 0:03:00.2]} 6. O-O {[%clk 0:03:02.5]} 6... O-O {[%clk
0:03:00.9]} 7. d4 {[%clk 0:03:03.2]} 7... cxd4 {[%clk 0:03:00.8]} 8. Nxd4 {[%clk
0:03:04.1]} 8... a6 {[%clk 0:03:01.1]} 9. a4 {[%clk 0:03:03.7]} 9... Nbd7 {[%clk
0:03:00.8]} 10. h3 {[%clk 0:03:03.4]} 10... Nc5 {[%clk 0:02:57.5]} 11. Re1
{[%clk 0:03:02.5]} 11... Qc7 {[%clk 0:02:56.6]} 12. Bg5 {[%clk 0:02:53.7]} 12...
Be6 {[%clk 0:02:51]} 13. Nxe6 {[%clk 0:02:47.1]} 13... fxe6 {[%clk 0:02:47.7]}
14. Qe2 {[%clk 0:02:41.5]} 14... h6 {[%clk 0:02:38.8]} 15. Be3 {[%clk
0:02:32.7]} 15... Nfd7 {[%clk 0:02:29.9]} 16. Bd2 {[%clk 0:02:06.1]} 16... Qb6
{[%clk 0:02:04.5]} 17. Rab1 {[%clk 0:02:00]} 17... a5 {[%clk 0:01:30.9]} 18. b3
{[%clk 0:01:40.9]} 18... Rf7 {[%clk 0:01:20]} 19. Nb5 {[%clk 0:01:37.7]} 19...
Raf8 {[%clk 0:01:16.8]} 20. Rf1 {[%clk 0:01:36.7]} 20... Kh7 {[%clk 0:01:10.2]}
21. Qe1 {[%clk 0:01:24.3]} 21... Ra8 {[%clk 0:01:00.4]} 22. Be3 {[%clk
0:01:22.7]} 22... Ne5 {[%clk 0:00:57.1]} 23. f4 {[%clk 0:01:20.4]} 23... Nc6
{[%clk 0:00:56.4]} 24. Qe2 {[%clk 0:01:16.6]} 24... Nb4 {[%clk 0:00:55.8]} 25.
Rbd1 {[%clk 0:01:09.6]} 25... Rc8 {[%clk 0:00:54.8]} 26. h4 {[%clk 0:01:03.9]}
26... h5 {[%clk 0:00:53]} 27. Kh2 {[%clk 0:01:03.7]} 27... Rcf8 {[%clk
0:00:49.5]} 28. Bh3 {[%clk 0:01:00.4]} 28... e5 {[%clk 0:00:39.3]} 29. f5 {[%clk
0:00:59.2]} 29... Qc6 {[%clk 0:00:33.5]} 30. fxg6+ {[%clk 0:00:54.9]} 30... Kxg6
{[%clk 0:00:34.4]} 31. Bf5+ {[%clk 0:00:42.2]} 31... Rxf5 {[%clk 0:00:33.2]} 32.
Rxf5 {[%clk 0:00:40.4]} 32... Rh8 {[%clk 0:00:20.9]} 33. Rg5+ {[%clk 0:00:34.3]}
33... Kf7 {[%clk 0:00:21]} 34. Rxh5 {[%clk 0:00:18]} 34... Qxe4 {[%clk
0:00:20.4]} 35. Rf1+ {[%clk 0:00:17.9]} 35... Ke6 {[%clk 0:00:18.5]} 36. Rxh8
{[%clk 0:00:15.2]} 36... Bxh8 {[%clk 0:00:18.5]} 37. Nc3 {[%clk 0:00:12.7]}
37... Qxc2 {[%clk 0:00:15.3]} 38. Qxc2 {[%clk 0:00:13]} 38... Nxc2 {[%clk
0:00:15.9]} 39. Bxc5 {[%clk 0:00:13.7]} 39... dxc5 {[%clk 0:00:16.8]} 40. Ne4
{[%clk 0:00:13.2]} 40... Kd5 {[%clk 0:00:15.3]} 41. Ng5 {[%clk 0:00:11.7]} 41...
e4 {[%clk 0:00:14.8]} 42. Rf8 {[%clk 0:00:11.3]} 42... Bd4 {[%clk 0:00:14.1]}
43. Rd8+ {[%clk 0:00:11.5]} 43... Ke5 {[%clk 0:00:13.3]} 44. h5 {[%clk
0:00:11.8]} 44... e3 {[%clk 0:00:13.4]} 45. h6 {[%clk 0:00:11.8]} 45... Ne1
{[%clk 0:00:13.3]} 46. h7 {[%clk 0:00:11.6]} 46... Kf5 {[%clk 0:00:11.3]} 47.
Rxd4 {[%clk 0:00:11.8]} 47... cxd4 {[%clk 0:00:11.2]} 48. h8=Q {[%clk
0:00:12.4]} 48... d3 {[%clk 0:00:09.6]} 49. Qh5 {[%clk 0:00:10.6]} 49... d2
{[%clk 0:00:06.9]} 50. Nf3+ {[%clk 0:00:10.8]} 50... Ke4 {[%clk 0:00:07.2]} 51.
Ng1 {[%clk 0:00:10.5]} 51... Nd3 {[%clk 0:00:03.8]} 52. Qf3+ {[%clk 0:00:10.5]}
52... Kd4 {[%clk 0:00:04.3]} 53. Ne2+ {[%clk 0:00:10.8]} 53... Ke5 {[%clk
0:00:01.8]} 54. Qxe3+ {[%clk 0:00:10.9]} 1-0

[Event "*** Titled Tuesday Blitz"]
[Site "Chess.com"]
[Date "2021.03.30"]
[Round "4"]
[White "Walter_White_Poland"]
[Black "WiktoriaPOL"]
[Result "1-0"]
[WhiteElo "2289"]
[BlackElo "2050"]
[TimeControl "180+1"]
[EndTime "10:40:11 PDT"]
[Termination "Walter_White_Poland won on time"]

1. g3 {[%clk 0:03:00.3]} 1... c5 {[%clk 0:02:58.1]} 2. Bg2 {[%clk 0:03:00.1]}
2... d5 {[%clk 0:02:57.8]} 3. c4 {[%clk 0:02:59.6]} 3... d4 {[%clk 0:02:56.8]}
4. Nf3 {[%clk 0:02:56.8]} 4... Nc6 {[%clk 0:02:55.7]} 5. O-O {[%clk 0:02:54.2]}
5... Nf6 {[%clk 0:02:55.3]} 6. d3 {[%clk 0:02:53.5]} 6... e5 {[%clk 0:02:54.5]}
7. Bg5 {[%clk 0:02:51.7]} 7... Bd6 {[%clk 0:02:53.7]} 8. a3 {[%clk 0:02:50]}
8... h6 {[%clk 0:02:53.1]} 9. Bxf6 {[%clk 0:02:49.1]} 9... Qxf6 {[%clk 0:02:52]}
10. Nbd2 {[%clk 0:02:45.9]} 10... Be7 {[%clk 0:02:39.7]} 11. b4 {[%clk
0:02:36.5]} 11... cxb4 {[%clk 0:02:20.4]} 12. axb4 {[%clk 0:02:35.9]} 12... Nxb4
{[%clk 0:02:19.4]} 13. Ne4 {[%clk 0:02:27.3]} 13... Qe6 {[%clk 0:02:08.6]} 14.
Qa4+ {[%clk 0:02:16.5]} 14... Bd7 {[%clk 0:02:05]} 15. Qa5 {[%clk 0:02:04]}
15... Nc6 {[%clk 0:01:49.8]} 16. Qb5 {[%clk 0:01:46.5]} 16... Nb4 {[%clk
0:01:32.3]} 17. Qxe5 {[%clk 0:01:40.6]} 17... Qxe5 {[%clk 0:01:28.5]} 18. Nxe5
{[%clk 0:01:40.4]} 18... Bc6 {[%clk 0:01:18.1]} 19. Nxc6 {[%clk 0:01:35.6]}
19... Nxc6 {[%clk 0:01:16.4]} 20. Rfb1 {[%clk 0:01:33.4]} 20... Bb4 {[%clk
0:01:08.3]} 21. Nf6+ {[%clk 0:01:18.2]} 21... gxf6 {[%clk 0:00:57]} 22. Bxc6+
{[%clk 0:01:15.9]} 22... bxc6 {[%clk 0:00:56.4]} 23. Rxb4 {[%clk 0:01:16.7]}
23... O-O {[%clk 0:00:54.7]} 24. Rba4 {[%clk 0:01:15.6]} 24... Rfe8 {[%clk
0:00:50]} 25. Kf1 {[%clk 0:01:14.4]} 25... Re7 {[%clk 0:00:49.4]} 26. Ra6 {[%clk
0:01:13.1]} 26... Rc7 {[%clk 0:00:46.9]} 27. c5 {[%clk 0:01:10.9]} 27... Kf8
{[%clk 0:00:34]} 28. R1a4 {[%clk 0:01:10.2]} 28... Ke7 {[%clk 0:00:11.3]} 29.
Rxd4 {[%clk 0:01:08.9]} 29... Rd7 {[%clk 0:00:10.6]} 30. Re4+ {[%clk 0:01:03.5]}
30... Kf8 {[%clk 0:00:09.6]} 31. Rxc6 {[%clk 0:01:02.9]} 31... a5 {[%clk
0:00:08.7]} 32. Ra4 {[%clk 0:01:02.8]} 32... Rb7 {[%clk 0:00:07.9]} 33. Rb6
{[%clk 0:01:00]} 33... Rxb6 {[%clk 0:00:04.6]} 34. cxb6 {[%clk 0:01:00.3]} 34...
Rb8 {[%clk 0:00:03.9]} 35. Rxa5 {[%clk 0:00:59.6]} 35... Rxb6 {[%clk 0:00:04.5]}
36. e3 {[%clk 0:00:57.9]} 36... Rb1+ {[%clk 0:00:02.7]} 37. Kg2 {[%clk
0:00:57.7]} 37... Rb3 {[%clk 0:00:02.6]} 38. d4 {[%clk 0:00:56.9]} 38... Rd3
{[%clk 0:00:02.7]} 39. h4 {[%clk 0:00:56.5]} 39... Kg7 {[%clk 0:00:03.1]} 40.
Kf3 {[%clk 0:00:56.4]} 40... Rd1 {[%clk 0:00:03.3]} 41. h5 {[%clk 0:00:55.9]}
41... Rd2 {[%clk 0:00:02.3]} 42. g4 {[%clk 0:00:55.4]} 42... Rd1 {[%clk
0:00:01.9]} 43. Kf4 {[%clk 0:00:55.2]} 43... Rd2 {[%clk 0:00:02.1]} 44. f3
{[%clk 0:00:55.3]} 44... Rf2 {[%clk 0:00:01.4]} 45. e4 {[%clk 0:00:54.4]} 45...
Rd2 {[%clk 0:00:01.2]} 46. d5 {[%clk 0:00:54.4]} 46... Rd4 {[%clk 0:00:01.2]}
47. Ra6 {[%clk 0:00:54.2]} 47... Rd3 {[%clk 0:00:01.7]} 48. d6 {[%clk
0:00:53.5]} 48... Kf8 {[%clk 0:00:02.1]} 49. Ra8+ {[%clk 0:00:46.1]} 49... Kg7
{[%clk 0:00:02.6]} 50. Rd8 {[%clk 0:00:45.6]} 50... Rd4 {[%clk 0:00:02.6]} 51.
Kf5 {[%clk 0:00:45.2]} 51... Rd3 {[%clk 0:00:02.9]} 52. f4 {[%clk 0:00:44.9]}
52... Rd4 {[%clk 0:00:02.7]} 53. Rd7 {[%clk 0:00:43]} 53... Rd3 {[%clk
0:00:02.7]} 54. e5 {[%clk 0:00:38.8]} 54... fxe5 {[%clk 0:00:02.3]} 55. fxe5
{[%clk 0:00:34.5]} 55... Rd4 {[%clk 0:00:02.2]} 56. e6 {[%clk 0:00:30.2]} 56...
Rd5+ {[%clk 0:00:01.8]} 57. Ke4 {[%clk 0:00:29.4]} 57... Rg5 {[%clk 0:00:01.7]}
58. Rxf7+ {[%clk 0:00:29.1]} 58... Kg8 {[%clk 0:00:01.4]} 59. Rf4 {[%clk
0:00:28.4]} 1-0

[Event "*** Titled Tuesday Blitz"]
[Site "Chess.com"]
[Date "2021.03.30"]
[Round "4"]
[White "DrMamaliga"]
[Black "lacafi"]
[Result "0-1"]
[WhiteElo "2390"]
[BlackElo "2221"]
[TimeControl "180+1"]
[EndTime "10:40:14 PDT"]
[Termination "lacafi won on time"]

1. c4 {[%clk 0:03:00.9]} 1... f5 {[%clk 0:02:59.6]} 2. Nf3 {[%clk 0:03:01.3]}
2... Nf6 {[%clk 0:02:59.1]} 3. b4 {[%clk 0:03:01.8]} 3... g6 {[%clk 0:02:59.1]}
4. Bb2 {[%clk 0:03:02.2]} 4... Bg7 {[%clk 0:02:59.8]} 5. e3 {[%clk 0:03:02.7]}
5... O-O {[%clk 0:03:00]} 6. Qb3 {[%clk 0:03:03.3]} 6... d6 {[%clk 0:02:57.5]}
7. d4 {[%clk 0:03:03.1]} 7... c6 {[%clk 0:02:54.2]} 8. Nc3 {[%clk 0:03:03.3]}
8... Qe8 {[%clk 0:02:49.3]} 9. Be2 {[%clk 0:03:01.3]} 9... e5 {[%clk 0:02:47.9]}
10. c5+ {[%clk 0:02:36.9]} 10... Be6 {[%clk 0:02:47.2]} 11. Bc4 {[%clk
0:02:37.4]} 11... Bxc4 {[%clk 0:02:47.4]} 12. Qxc4+ {[%clk 0:02:37.1]} 12... d5
{[%clk 0:02:48.3]} 13. Qe2 {[%clk 0:02:31.3]} 13... exd4 {[%clk 0:02:42]} 14.
Nxd4 {[%clk 0:02:24.9]} 14... Nbd7 {[%clk 0:02:33.3]} 15. O-O {[%clk 0:02:22.4]}
15... Ne5 {[%clk 0:02:32.8]} 16. Rad1 {[%clk 0:02:14.6]} 16... Nc4 {[%clk
0:02:32.4]} 17. Ba1 {[%clk 0:02:14.7]} 17... Qd7 {[%clk 0:02:08.5]} 18. Nb1
{[%clk 0:02:09.5]} 18... Rae8 {[%clk 0:02:07.1]} 19. Nd2 {[%clk 0:02:07.5]}
19... Ne5 {[%clk 0:01:57.7]} 20. h3 {[%clk 0:02:02.7]} 20... Nh5 {[%clk
0:01:36.7]} 21. N4f3 {[%clk 0:01:41.7]} 21... Nxf3+ {[%clk 0:01:21.8]} 22. Nxf3
{[%clk 0:01:40.9]} 22... Bxa1 {[%clk 0:01:22.3]} 23. Rxa1 {[%clk 0:01:40.9]}
23... f4 {[%clk 0:01:23]} 24. Nd4 {[%clk 0:01:35.6]} 24... fxe3 {[%clk
0:01:19.4]} 25. fxe3 {[%clk 0:01:36.5]} 25... Rxf1+ {[%clk 0:01:14.1]} 26. Rxf1
{[%clk 0:01:37.4]} 26... Ng3 {[%clk 0:01:12.9]} 27. Qd3 {[%clk 0:01:21.8]} 27...
Nxf1 {[%clk 0:01:10.1]} 28. Kxf1 {[%clk 0:01:22.7]} 28... Qe7 {[%clk 0:01:04.9]}
29. Ke2 {[%clk 0:01:17.4]} 29... Qe4 {[%clk 0:01:04.4]} 30. Qxe4 {[%clk
0:01:15.2]} 30... Rxe4 {[%clk 0:01:03.7]} 31. a4 {[%clk 0:01:16.1]} 31... a6
{[%clk 0:00:58.1]} 32. Kd3 {[%clk 0:01:09.6]} 32... Kf7 {[%clk 0:00:55.5]} 33.
b5 {[%clk 0:00:56.9]} 33... cxb5 {[%clk 0:00:37.2]} 34. axb5 {[%clk 0:00:57.8]}
34... a5 {[%clk 0:00:37.6]} 35. b6 {[%clk 0:00:53.9]} 35... a4 {[%clk
0:00:22.9]} 36. c6 {[%clk 0:00:47.6]} 36... bxc6 {[%clk 0:00:23]} 37. b7 {[%clk
0:00:47.6]} 37... Re8 {[%clk 0:00:16.9]} 38. Nxc6 {[%clk 0:00:47.6]} 38... a3
{[%clk 0:00:14.6]} 39. Kc3 {[%clk 0:00:47.9]} 39... Rxe3+ {[%clk 0:00:13.5]} 40.
Kc2 {[%clk 0:00:48]} 40... a2 {[%clk 0:00:03.9]} 41. Kb2 {[%clk 0:00:43.6]}
41... Re2+ {[%clk 0:00:03.8]} 42. Ka1 {[%clk 0:00:42.4]} 42... Re8 {[%clk
0:00:03.7]} 43. Kxa2 {[%clk 0:00:39.1]} 43... Ke6 {[%clk 0:00:04.2]} 44. Kb3
{[%clk 0:00:34.6]} 44... Kd6 {[%clk 0:00:02.5]} 45. b8=Q+ {[%clk 0:00:35]} 45...
Rxb8+ {[%clk 0:00:02.4]} 46. Nxb8 {[%clk 0:00:35.9]} 46... Ke5 {[%clk
0:00:01.8]} 47. Kc3 {[%clk 0:00:35.3]} 47... Kf4 {[%clk 0:00:02.1]} 48. Nd7
{[%clk 0:00:19.2]} 48... Kg3 {[%clk 0:00:02.5]} 49. Nf6 {[%clk 0:00:18.2]} 49...
Kxg2 {[%clk 0:00:02.6]} 50. Nxh7 {[%clk 0:00:16.5]} 50... Kxh3 {[%clk
0:00:03.1]} 51. Kd4 {[%clk 0:00:13.5]} 51... Kh4 {[%clk 0:00:03.7]} 52. Kxd5
{[%clk 0:00:13.7]} 52... Kh5 {[%clk 0:00:04.1]} 53. Ke5 {[%clk 0:00:13.5]} 53...
Kh6 {[%clk 0:00:04.6]} 54. Nf6 {[%clk 0:00:13.4]} 54... g5 {[%clk 0:00:04.9]}
55. Ng4+ {[%clk 0:00:13.6]} 55... Kh5 {[%clk 0:00:05.2]} 56. Ke6 {[%clk
0:00:14.5]} 56... Kxg4 {[%clk 0:00:05.1]} 57. Ke5 {[%clk 0:00:14.1]} 57... Kh4
{[%clk 0:00:06]} 58. Ke4 {[%clk 0:00:14.1]} 58... g4 {[%clk 0:00:06.6]} 59. Kf4
{[%clk 0:00:14]} 59... Kh3 {[%clk 0:00:07.5]} 60. Ke3 {[%clk 0:00:13]} 60... g3
{[%clk 0:00:08.1]} 61. Ke2 {[%clk 0:00:13]} 61... Kh2 {[%clk 0:00:08.7]} 0-1